fUSD/lending_fUSD_20251119
["ID","MTS","AMOUNT","RATE_DAILY","PERIOD"]
[394448402,1763583523848,-346.92462646,0.000411,120]
[394448403,1763583523886,-346.92462646,0.000411,120]
[394448404,1763583523921,-346.92462646,0.000411,120]
[394448405,1763583523956,-346.92462646,0.000411,120]
[394448406,1763583523990,-346.92462646,0.000411,120]
[394448407,1763583524024,-346.92462646,0.000411,120]
[394448408,1763583524058,-346.92462646,0.000411,120]
[394448409,1763583524095,-346.92462646,0.000411,120]
[394448410,1763583524132,-346.92,0.000411,120]
[394448411,1763583524166,-1548.1616,0.00041111,120]
[394448412,1763583524204,-500.0,0.00041123,120]
[394448413,1763583524241,-500.0,0.00041151,120]
[394448414,1763583524277,-500.0,0.00041178,120]
[394448415,1763583524314,-395.35,0.000412,120]
[394448416,1763583524350,-13853.36,0.000412,30]
[394448417,1763583524388,-314.42202545,0.00041205,30]
[394448418,1763583524426,-610.0,0.00041206,120]
[394448419,1763583524462,-9369.16848542,0.00041285,90]
[394448420,1763583524498,-163.20711,0.00041288,30]
[394448421,1763583524536,-460.0,0.0004132,30]
[394448422,1763583524572,-500.0,0.0004137,120]
[394448423,1763583524605,-314.42202545,0.0004137,30]
[394448424,1763583524644,-10435.252537,0.0004145,30]
[394448425,1763583524679,-163.20711,0.00041488,30]
[394448426,1763583524714,-25786.96550944,0.00041509,30]
[394448427,1763583524750,-314.42202545,0.00041534,30]
[394448428,1763583524786,-500.0,0.00041644,120]
[394448429,1763583524820,-92839.94123362,0.0004166,120]
[394448430,1763583524855,-163.20711,0.00041688,30]
[394448431,1763583524891,-252.11703517,0.0004169,30]
[394448432,1763583524924,-150.0,0.00041698,30]
[394448433,1763583524958,-967.00356947,0.00041698,30]
[394448434,1763583524991,-150.0,0.00041698,30]
[394448435,1763583525026,-905.84420822,0.00041698,30]
[394448436,1763583525061,-314.42202545,0.00041699,30]
[394448437,1763583525095,-460.0,0.00041742,30]
[394448438,1763583525130,-300.0,0.0004177,108]
[394448439,1763583525165,-423.71333823,0.000418,30]
[394448440,1763583525200,-314.42202545,0.00041836,30]
[394448441,1763583525235,-456783.866,0.00041842,30]
[394448442,1763583525269,-273.23512295,0.00041887,30]
[394448443,1763583525303,-163.20711,0.00041888,30]
[394448444,1763583525337,-500.0,0.00041918,120]
[394448445,1763583525369,-1000.0,0.00041918,30]
[394448446,1763583525403,-1000.0,0.00041918,30]
[394448447,1763583525435,-1000.0,0.00041918,30]
[394448448,1763583525468,-1000.0,0.00041918,30]
[394448449,1763583525501,-1000.0,0.00041918,30]
[394448450,1763583525534,-1000.0,0.00041918,30]
[394448451,1763583525567,-1000.0,0.00041918,30]
[394448452,1763583525600,-1000.0,0.00041918,30]
[394448453,1763583525634,-1000.0,0.00041918,30]
[394448454,1763583525672,-1000.0,0.00041918,30]
[394448455,1763583525708,-1000.0,0.00041918,30]
[394448456,1763583525745,-1000.0,0.00041918,30]
[394448457,1763583525780,-1000.0,0.00041918,30]
[394448458,1763583525815,-1000.0,0.00041918,30]
[394448459,1763583525850,-1000.0,0.00041918,30]
[394448460,1763583525884,-1000.0,0.00041918,30]
[394448461,1763583525918,-1000.0,0.00041918,30]
[394448462,1763583525951,-1000.0,0.00041918,30]
[394448463,1763583526140,-1000.0,0.00041918,30]
[394448464,1763583526179,-1000.0,0.00041918,30]
[394448465,1763583526215,-1000.0,0.00041918,30]
[394448466,1763583526250,-1000.0,0.00041918,30]
[394448467,1763583526285,-1000.0,0.00041918,30]
[394448468,1763583526319,-1000.0,0.00041918,30]
[394448469,1763583526354,-1000.0,0.00041918,30]
[394448470,1763583526389,-1000.0,0.00041918,30]
[394448471,1763583526424,-1000.0,0.00041918,30]
[394448472,1763583526457,-1000.0,0.00041918,30]
[394448473,1763583526490,-1000.0,0.00041918,30]
[394448474,1763583526523,-1000.0,0.00041918,30]
[394448475,1763583526555,-1000.0,0.00041918,30]
[394448476,1763583526588,-1000.0,0.00041918,30]
[394448477,1763583526622,-1000.0,0.00041918,30]
[394448478,1763583526660,-1000.0,0.00041918,30]
[394448479,1763583526695,-1000.0,0.00041918,30]
[394448480,1763583526731,-1000.0,0.00041918,30]
[394448481,1763583526769,-1000.0,0.00041918,30]
[394448482,1763583526806,-1000.0,0.00041918,30]
[394448483,1763583526843,-1000.0,0.00041918,30]
[394448484,1763583526880,-1000.0,0.00041918,30]
[394448485,1763583526916,-1000.0,0.00041918,30]
[394448486,1763583526951,-1000.0,0.00041918,30]
[394448487,1763583526988,-1000.0,0.00041918,30]
[394448488,1763583527024,-1000.0,0.00041918,30]
[394448489,1763583527062,-1000.0,0.00041918,30]
[394448490,1763583527096,-1000.0,0.00041918,30]
[394448491,1763583527132,-1000.0,0.00041918,30]
[394448492,1763583527168,-1000.0,0.00041918,30]
[394448493,1763583527206,-1000.0,0.00041918,30]
[394448494,1763583527242,-1000.0,0.00041918,30]
[394448495,1763583527277,-1000.0,0.00041918,30]
[394448496,1763583527312,-1000.0,0.00041918,30]
[394448497,1763583527346,-1000.0,0.00041918,30]
[394448498,1763583527380,-1000.0,0.00041918,30]
[394448499,1763583527414,-1000.0,0.00041918,30]
[394448500,1763583527450,-1000.0,0.00041918,30]
[394448501,1763583527485,-1000.0,0.00041918,30]
[394448502,1763583527519,-1000.0,0.00041918,30]
[394448503,1763583527553,-1000.0,0.00041918,30]
[394448504,1763583527587,-1000.0,0.00041918,30]
[394448505,1763583527620,-1000.0,0.00041918,30]
[394448506,1763583527655,-1000.0,0.00041918,30]
[394448507,1763583527689,-1000.0,0.00041918,30]
[394448508,1763583527724,-1000.0,0.00041918,30]
[394448509,1763583527760,-1000.0,0.00041918,30]
[394448510,1763583527794,-1000.0,0.00041918,30]
[394448511,1763583527828,-1000.0,0.00041918,30]
[394448512,1763583527865,-1000.0,0.00041918,30]
[394448513,1763583527898,-1000.0,0.00041918,30]
[394448514,1763583527932,-1000.0,0.00041918,30]
[394448515,1763583527966,-1000.0,0.00041918,30]
[394448516,1763583528000,-1000.0,0.00041918,30]
[394448517,1763583528035,-1000.0,0.00041918,30]
[394448518,1763583528075,-1000.0,0.00041918,30]
[394448519,1763583528116,-1000.0,0.00041918,30]
[394448520,1763583528151,-1000.0,0.00041918,30]
[394448521,1763583528187,-1000.0,0.00041918,30]
[394448522,1763583528230,-1000.0,0.00041918,30]
[394448523,1763583528272,-1000.0,0.00041918,30]
[394448524,1763583528308,-1000.0,0.00041918,30]
[394448525,1763583528342,-1000.0,0.00041918,30]
[394448526,1763583528375,-1000.0,0.00041918,30]
[394448527,1763583528408,-1000.0,0.00041918,30]
[394448528,1763583528441,-1000.0,0.00041918,30]
[394448529,1763583528475,-1000.0,0.00041918,30]
[394448530,1763583528510,-1000.0,0.00041918,30]
[394448531,1763583528546,-1000.0,0.00041918,30]
[394448532,1763583528583,-156.0,0.00041918,30]
[394448533,1763583528618,-1000.0,0.00041918,30]
[394448534,1763583528659,-1000.0,0.00041918,30]
[394448535,1763583528697,-1000.0,0.00041918,30]
[394448536,1763583528734,-1000.0,0.00041918,30]
[394448537,1763583528773,-1000.0,0.00041918,30]
[394448538,1763583528810,-1000.0,0.00041918,30]
[394448539,1763583528846,-1000.0,0.00041918,30]
[394448540,1763583528882,-1000.0,0.00041918,30]
[394448541,1763583528918,-1000.0,0.00041918,30]
[394448542,1763583528955,-1000.0,0.00041918,30]
[394448543,1763583528992,-700.0,0.00042,30]
[394448544,1763583529025,-700.0,0.00042,30]
[394448545,1763583529060,-700.0,0.00042,30]
[394448546,1763583529096,-700.0,0.00042,30]
[394448547,1763583529134,-700.0,0.00042,30]
[394448548,1763583529169,-60319.21823441,0.00042,120]
[394448549,1763583529204,-164.0,0.00042,30]
[394448550,1763583529240,-161.0,0.00042,30]
[394448551,1763583529276,-161.0,0.00042,30]
[394448552,1763583529312,-161.0,0.00042,30]
[394448553,1763583529349,-161.0,0.00042,30]
[394448554,1763583529386,-150.0,0.00042,49]
[394448555,1763583529426,-50000.0,0.00042051,30]
[394448556,1763583529465,-50000.0,0.00042051,31]
[394448557,1763583529503,-50000.0,0.00042051,32]
[394448558,1763583529540,-50000.0,0.00042051,33]
[394448559,1763583529580,-50000.0,0.00042051,34]
[394448560,1763583529617,-162.026882,0.00042052,120]
[394448561,1763583529652,-151.0,0.00042052,120]
[394448562,1763583529688,-158.918337,0.00042052,120]
[394448563,1763583529725,-151.0,0.00042052,120]
[394448564,1763583529762,-151.0,0.00042052,120]
[394448565,1763583529800,-151.0,0.00042052,120]
[394448566,1763583529841,-151.0,0.00042052,120]
[394448567,1763583530019,-301.624884,0.00042052,120]
[394448568,1763583530061,-151.0,0.00042052,120]
[394448569,1763583530100,-151.0,0.00042052,120]
[394448570,1763583530137,-189.086596,0.00042052,60]
[394448571,1763583530174,-151.0,0.00042052,120]
[394448572,1763583530210,-151.0,0.00042052,120]
[394448573,1763583530246,-151.0,0.00042052,120]
[394448574,1763583530281,-151.0,0.00042052,120]
[394448575,1763583530317,-151.0,0.00042052,120]
[394448576,1763583530354,-501.070849,0.00042052,120]
[394448577,1763583530391,-501.070849,0.00042052,120]
[394448578,1763583530426,-501.070849,0.00042052,120]
[394448579,1763583530460,-501.070853,0.00042052,120]
[394448580,1763583530497,-151.0,0.00042052,120]
[394448581,1763583530533,-167.26806,0.00042052,120]
[394448582,1763583530567,-151.0,0.00042052,120]
[394448583,1763583530602,-151.0,0.00042052,120]
[394448584,1763583530640,-151.0,0.00042052,120]
[394448585,1763583530677,-151.0,0.00042052,120]
[394448586,1763583530712,-151.0,0.00042052,120]
[394448587,1763583530748,-151.0,0.00042052,120]
[394448588,1763583530791,-151.0,0.00042052,120]
[394448589,1763583530834,-289.486684,0.00042052,120]
[394448590,1763583530879,-151.0,0.00042052,120]
[394448591,1763583530917,-151.0,0.00042052,120]
[394448592,1763583530954,-192.731582,0.00042052,120]
[394448593,1763583530990,-192.731582,0.00042052,120]
[394448594,1763583531030,-192.731582,0.00042052,120]
[394448595,1763583531068,-192.731576,0.00042052,120]
[394448596,1763583531107,-151.0,0.00042052,90]
[394448597,1763583531144,-151.0,0.00042052,90]
[394448598,1763583531179,-201.87,0.00042052,60]
[394448599,1763583531214,-150.86850997,0.00042052,120]
[394448600,1763583531266,-150.0,0.00042095,30]
[394448601,1763583531302,-150.0,0.00042095,30]
[394448602,1763583531338,-244.218,0.00042095,30]
[394448603,1763583531378,-196.78421098,0.000421,120]
[394448604,1763583531416,-182.57104162,0.000421,120]
[394448605,1763583531456,-196.55622237,0.000421,120]
[394448606,1763583531498,-249.25648778,0.000421,120]
[394448607,1763583531534,-700.0,0.000421,120]
[394448608,1763583531569,-700.0,0.000421,120]
[394448609,1763583531604,-700.0,0.000421,120]
[394448610,1763583531644,-700.0,0.000421,120]
[394448611,1763583531681,-700.0,0.000421,120]
[394448612,1763583531722,-700.0,0.000421,120]
[394448613,1763583531757,-700.0,0.000421,120]
[394448614,1763583531795,-700.0,0.000421,120]
[394448615,1763583531831,-700.0,0.000421,120]
[394448616,1763583531868,-700.0,0.000421,120]
[394448617,1763583531905,-700.0,0.000421,120]
[394448618,1763583531940,-700.0,0.000421,120]
[394448619,1763583531975,-700.0,0.000421,120]
[394448620,1763583532009,-700.0,0.000421,120]
[394448621,1763583532047,-700.0,0.000421,120]
[394448622,1763583532082,-700.0,0.000421,120]
[394448623,1763583532119,-700.0,0.000421,120]
[394448624,1763583532153,-700.0,0.000421,120]
[394448625,1763583532190,-700.0,0.000421,120]
[394448626,1763583532228,-700.0,0.000421,120]
[394448627,1763583532268,-700.0,0.000421,120]
[394448628,1763583532307,-700.0,0.000421,120]
[394448629,1763583532343,-700.0,0.000421,120]
[394448630,1763583532378,-700.0,0.000421,120]
[394448631,1763583532417,-700.0,0.000421,120]
[394448632,1763583532457,-700.0,0.000421,120]
[394448633,1763583532499,-700.0,0.000421,120]
[394448634,1763583532534,-700.0,0.000421,120]
[394448635,1763583532570,-1208.96423495,0.00042134,39]
[394448636,1763583532610,-1632266.95117708,0.00042161,120]
[394448637,1763583532654,-460.0,0.00042163,30]
[394448638,1763583532691,-161.8,0.00042168,30]
[394448639,1763583532728,-505.426089,0.00042187,120]
[394448640,1763583532766,-2000.0,0.00042187,120]
[394448641,1763583532803,-200.0,0.00042187,120]
[394448642,1763583532842,-700.0,0.0004219,120]
[394448643,1763583532883,-700.0,0.0004219,120]
[394448644,1763583532922,-700.0,0.0004219,120]
[394448645,1763583532957,-500.0,0.00042192,120]
[394448646,1763583532993,-150.0,0.00042192,120]
[394448647,1763583533029,-700.0,0.00042198,30]
[394448648,1763583533065,-700.0,0.00042198,30]
[394448649,1763583533102,-700.0,0.00042198,30]
[394448650,1763583533137,-700.0,0.00042198,30]
[394448651,1763583533172,-700.0,0.00042198,30]
[394448652,1763583533207,-700.0,0.00042198,30]
[394448653,1763583533241,-700.0,0.00042198,30]
[394448654,1763583533278,-700.0,0.00042198,30]
[394448655,1763583533315,-289.56,0.000422,120]
[394448656,1763583533352,-169.32,0.000422,30]
[394448657,1763583533389,-150.0,0.000422,60]
[394448658,1763583533425,-5470.0,0.00042201,30]
[394448659,1763583533475,-150.0,0.00042201,120]
[394448660,1763583533513,-476.7,0.00042202,120]
[394448661,1763583533549,-533.85,0.00042466,120]
[394448662,1763583533584,-3000.0,0.000425,120]
[394448663,1763583533621,-771.0,0.000425,120]
[394448664,1763583533658,-150.0,0.0004257,120]
[394448665,1763583533693,-460.0,0.00042585,30]
[394448666,1763583533730,-189.93,0.0004274,91]
[394448667,1763583533769,-658.4097452,0.00042745,120]
[394448668,1763583533807,-20015.79291502,0.00043,30]
[394448669,1763583533845,-3000.0,0.00043,120]
[394448670,1763583534070,-164.35001698,0.00043,120]
[394448671,1763583534112,-154.16204211,0.00043,120]
[394448672,1763583534150,-460.0,0.00043006,30]
[394448673,1763583534188,-200.0,0.00043199,120]
[394448674,1763583534226,-162.0174,0.0004322,30]
[394448675,1763583534263,-3000.0,0.000433,120]
[394448676,1763583534302,-249.25648778,0.000433,120]
[394448677,1763583534336,-460.0,0.00043428,30]
[394448678,1763583534372,-2000.0,0.000437,120]
[394448679,1763583534409,-150.0,0.00043712,120]
[394448680,1763583534445,-1324.23010764,0.00043866,42]
[394448681,1763583534486,-150.0,0.00043916,120]
[394448682,1763583534522,-449.2851403,0.00044,120]
[394448683,1763583534558,-153.0,0.00044,120]
[394448684,1763583534596,-200.0,0.00044,120]
[394448685,1763583534634,-152.0,0.00044,120]
[394448686,1763583534677,-257.80294743,0.00044,120]
[394448687,1763583534715,-1156.51623375,0.00044,120]
[394448688,1763583534755,-2004.0,0.000441,120]
[394448689,1763583534796,-200.0,0.00044199,120]
[394448690,1763583534839,-311.95634928,0.000445,120]
[394448691,1763583534881,-249.25648778,0.000446,120]
[394448692,1763583534919,-152.0,0.000447,120]
[394448693,1763583534962,-295.12,0.00044845,120]
[394448694,1763583535003,-700.83,0.00044887,30]
[394448695,1763583535044,-531.53,0.00044887,30]
[394448696,1763583535082,-153.0,0.000449,120]
[394448697,1763583535119,-2171.70809109,0.000449,60]
[394448698,1763583535161,-562.67631442,0.000449,30]
[394448699,1763583535203,-50000.0,0.00045,45]
[394448700,1763583535240,-1122.49667001,0.00045,32]
[394448701,1763583535282,-8082.0229879,0.00045,120]
[394448702,1763583535321,-232.56367586,0.00045,120]
[394448703,1763583535357,-1404.08280842,0.00045,120]
[394448704,1763583535393,-169.69142202,0.00045,120]
[394448705,1763583535429,-47389.89200502,0.00045,120]
[394448706,1763583535467,-13853.36,0.00045,30]
[394448707,1763583535508,-150.0,0.00045,120]
[394448708,1763583535544,-200.0,0.00045199,120]
[394448709,1763583535583,-152.0,0.000454,120]
[394448710,1763583535623,-1443.1567287,0.00045597,46]
[394448711,1763583535660,-172.61142156,0.000457,120]
[394448712,1763583535696,-359.01,0.00045709,30]
[394448713,1763583535732,-478.61,0.00045848,30]
[394448714,1763583535768,-160.0,0.00045888,30]
[394448715,1763583535803,-153.0,0.000459,120]
[394448716,1763583535840,-750.0,0.00046,120]
[394448717,1763583535880,-223.04469944,0.00046,30]
[394448718,1763583535914,-346.15218348,0.00046,90]
[394448719,1763583535950,-249.25648778,0.00046,120]
[394448720,1763583535985,-200.0,0.00046199,120]
[394448721,1763583536023,-152.0,0.000462,120]
[394448722,1763583536062,-13853.36,0.000464,30]
[394448723,1763583536102,-153.0,0.000468,120]
[394448724,1763583536140,-379.41702809,0.000468,120]
[394448725,1763583536178,-152.0,0.000469,120]
[394448726,1763583536217,-621.73776868,0.000469,120]
[394448727,1763583536255,-515.74469337,0.00047,120]
[394448728,1763583536292,-200.0,0.00047199,120]
[394448729,1763583536330,-1565.63469813,0.00047328,50]
[394448730,1763583536367,-249.25648778,0.000474,120]
[394448731,1763583536403,-200.12063601,0.000475,120]
[394448732,1763583536439,-152.0,0.000476,120]
[394448733,1763583536474,-153.0,0.000478,120]
[394448734,1763583536509,-167.88794777,0.000478,120]
[394448735,1763583536556,-408.23732594,0.000479,120]
[394448736,1763583536593,-200.0,0.00048,120]
[394448737,1763583536628,-1822.64083672,0.00048,120]
[394448738,1763583536671,-328.06241492,0.00048,120]
[394448739,1763583536708,-217.51879803,0.00048,120]
[394448740,1763583536746,-100000.0,0.00048,35]
[394448741,1763583536783,-200.0,0.00048199,120]
[394448742,1763583536821,-152.0,0.000483,120]
[394448743,1763583536860,-360.3966767,0.000486,120]
[394448744,1763583536895,-153.0,0.000487,120]
[394448745,1763583536932,-152.0,0.00049,120]
[394448746,1763583536968,-952.43169439,0.00049,120]
[394448747,1763583537004,-440.63074756,0.00049,120]
[394448748,1763583537041,-100880.0,0.00049,35]
[394448749,1763583537078,-150.0,0.00049,120]
[394448750,1763583537116,-1691.56387707,0.00049059,54]
[394448751,1763583537160,-200.0,0.00049199,120]
[394448752,1763583537200,-2697.58,0.000493,30]
[394448753,1763583537239,-500.0,0.00049315,120]
[394448754,1763583537281,-514.12257694,0.00049315,120]
[394448755,1763583537318,-218.08448704,0.000495,120]
[394448756,1763583537356,-700.83,0.00049676,30]
[394448757,1763583537396,-153.0,0.000497,120]
[394448758,1763583537442,-152.0,0.000497,120]
[394448759,1763583537489,-164.63988913,0.000498,30]
[394448760,1763583537539,-2430.04096381,0.000498,120]
[394448761,1763583537583,-295.12,0.00049892,120]
[394448762,1763583537626,-5000.0,0.00049987,31]
[394448763,1763583537668,-92864.4369709,0.0004999,120]
[394448764,1763583537709,-187.48249019,0.00049999,120]
[394448765,1763583537751,-500.0,0.00049999,120]
[394448766,1763583537793,-338.9347602,0.00049999,120]
[394448767,1763583537840,-577.28015018,0.00049999,120]
[394448768,1763583537883,-500.0,0.00049999,120]
[394448769,1763583537924,-500.0,0.00049999,120]
[394448770,1763583537963,-500.0,0.00049999,120]
[394448771,1763583538000,-500.0,0.00049999,120]
[394448772,1763583538038,-500.0,0.00049999,120]
[394448773,1763583538235,-500.0,0.00049999,120]
[394448774,1763583538282,-500.0,0.00049999,120]
[394448775,1763583538323,-500.0,0.00049999,120]
[394448776,1763583538363,-165.63787056,0.00049999,120]
[394448777,1763583538401,-500.0,0.00049999,120]
[394448778,1763583538440,-50000.0,0.0005,50]
[394448779,1763583538481,-200.0,0.0005,120]
[394448780,1763583538528,-511.9758166,0.0005,120]
[394448781,1763583538575,-200.0,0.0005,120]
[394448782,1763583538623,-608.41288665,0.0005,120]
[394448783,1763583538670,-1412.44341814,0.0005,120]
[394448784,1763583538713,-150.8678544,0.0005,120]
[394448785,1763583538753,-184.16443623,0.0005,120]
[394448786,1763583538794,-664.70528192,0.0005,120]
[394448787,1763583538835,-190.0,0.0005,120]
[394448788,1763583538874,-210.0,0.0005,120]
[394448789,1763583538912,-235.7573919,0.0005,120]
[394448790,1763583538948,-164.50658002,0.0005,120]
[394448791,1763583538984,-5658.24,0.0005,90]
[394448792,1763583539022,-13853.36,0.0005,30]
[394448793,1763583539058,-203.154652,0.00050199,120]
[394448794,1763583539095,-152.0,0.000505,120]
[394448795,1763583539132,-153.0,0.000506,120]
[394448796,1763583539172,-1820.85215014,0.0005079,57]
[394448797,1763583539213,-750.0,0.000508,120]
[394448798,1763583539253,-1199.44985528,0.000508,120]
[394448799,1763583539292,-160.62870985,0.00050999,120]
[394448800,1763583539331,-152.0,0.000512,120]
[394448801,1763583539369,-1605.0,0.00051453,120]
[394448802,1763583539409,-705.0,0.00051453,120]
[394448803,1763583539452,-153.0,0.000515,120]
[394448804,1763583539494,-3433.0,0.00051523,120]
[394448805,1763583539537,-1319.0,0.00051523,120]
[394448806,1763583539577,-575.0,0.00051523,120]
[394448807,1763583539617,-609.0,0.00051523,120]
[394448808,1763583539654,-1191.0,0.00051523,120]
[394448809,1763583539694,-794.0,0.00051523,120]
[394448810,1763583539731,-1276.0,0.00051523,120]
[394448811,1763583539769,-152.0,0.000519,120]
[394448812,1763583539810,-50000.0,0.00052,52]
[394448813,1763583539852,-200.0,0.00052,120]
[394448814,1763583539894,-1130.79,0.00052,30]
[394448815,1763583539930,-280.0,0.00052,30]
[394448816,1763583539968,-171.36138556,0.00052274,120]
[394448817,1763583540005,-153.0,0.000525,120]
[394448818,1763583540043,-1953.41440785,0.00052521,61]
[394448819,1763583540088,-152.0,0.000526,120]
[394448820,1763583540129,-5000.0,0.00053234,31]
[394448821,1763583540170,-152.0,0.000533,120]
[394448822,1763583540211,-153.0,0.000534,120]
[394448823,1763583540252,-350.5,0.000534,60]
[394448824,1763583540294,-800.0,0.000538,120]
[394448825,1763583540337,-1000.0,0.000538,120]
[394448826,1763583540379,-200.0,0.000539,120]
[394448827,1763583540416,-62509.9024187,0.0005392,120]
[394448828,1763583540458,-150.0,0.0005399,120]
[394448829,1763583540498,-200.0,0.00054,120]
[394448830,1763583540536,-152.0,0.00054,120]
[394448831,1763583540574,-2089.17170093,0.00054252,65]
[394448832,1763583540615,-153.0,0.000544,120]
[394448833,1763583540659,-1605.0,0.00054453,120]
[394448834,1763583540710,-705.0,0.00054453,120]
[394448835,1763583541050,500.0,0.00054221,30]
[394448836,1763583541103,500.0,0.00054221,30]
[394448837,1763583541171,500.0,0.00054221,30]
[394448838,1763583541237,500.0,0.00054221,30]
[394448839,1763583541292,500.0,0.00054221,30]
[394448840,1763583541338,500.0,0.00054221,30]
[394448841,1763583541390,500.0,0.00054221,30]
[394448842,1763583541436,500.0,0.00054221,30]
[394448843,1763583541504,248.0,0.00054221,30]
[394448844,1763583542390,240.0,0.00043169,30]
[394448845,1763583542434,240.0,0.00045112,30]
[394448846,1763583542476,240.0,0.00047054,30]
[394448847,1763583542515,240.0,0.00048997,30]
[394448848,1763583542556,280.0,0.0005094,30]
[394448849,1763583542598,869.82,0.00041918,30]
[394448850,1763583549967,151.98517644,0.00054162,30]
[394448851,1763583550178,1000.0,0.00052963,30]
[394448852,1763583550380,1000.0,0.00051877,30]
[394448853,1763583550523,1000.0,0.00052142,30]
[394448854,1763583550593,1000.0,0.00054336,30]
[394448855,1763583550668,1000.0,0.00052565,30]
[394448856,1763583551405,284.20461882,0.00054521,30]
[394448857,1763583555827,2920.73339651,0.00054439,30]
[394448858,1763583558577,500.0,0.0005452,30]
[394448859,1763583558816,500.0,0.0005452,30]
[394448860,1763583559078,300.0,0.0005452,30]
[394448861,1763583560003,500.0,0.0005452,30]
[394448862,1763583560197,500.0,0.0005452,30]
[394448863,1763583560391,150.0,0.0005452,30]
[394448864,1763583561437,500.0,0.0005452,30]
[394448865,1763583561772,500.0,0.0005452,30]
[394448866,1763583561847,500.0,0.0005452,30]
[394448867,1763583562070,500.0,0.0005452,30]
[394448868,1763583562323,500.0,0.0005452,30]
[394448869,1763583562574,500.0,0.0005452,30]
[394448870,1763583562807,500.0,0.0005452,30]
[394448871,1763583563226,170.0,0.0005452,30]
[394448872,1763583564808,150.0,0.0005452,30]
[394448873,1763583565206,150.0,0.0005452,30]
[394448874,1763583565415,200.0,0.0005452,30]
[394448875,1763583566899,338.62,0.00042055,30]
[394448876,1763583568433,150.0,0.0005452,30]
[394448877,1763583568745,150.0,0.0005452,30]
[394448878,1763583568973,150.0,0.0005452,30]
[394448879,1763583569158,150.0,0.0005452,30]
[394448880,1763583569337,150.0,0.0005452,30]
[394448881,1763583569509,250.0,0.0005452,30]
[394448882,1763583570099,5518.0,0.000514,120]
[394448883,1763583570424,500.0,0.0005452,30]
[394448884,1763583570669,500.0,0.0005452,30]
[394448885,1763583570973,500.0,0.0005452,30]
[394448886,1763583571223,304.29749888,0.0005452,30]
[394448887,1763583572526,150.0,0.0005452,30]
[394448888,1763583572708,150.0,0.0005452,30]
[394448889,1763583572924,202.03729613,0.0005452,30]
[394448890,1763583573488,606.109876,0.000545,30]
[394448891,1763583574081,150.0,0.0005452,30]
[394448892,1763583574327,150.0,0.0005452,30]
[394448893,1763583575040,150.0,0.0005452,30]
[394448894,1763583575276,150.0,0.0005452,30]
[394448895,1763583575478,150.0,0.0005452,30]
[394448896,1763583575681,150.0,0.0005452,30]
[394448897,1763583575926,150.0,0.0005452,30]
[394448898,1763583576102,250.0,0.0005452,30]
[394448899,1763583577355,500.0,0.0005452,30]
[394448900,1763583577531,500.0,0.0005452,30]
[394448901,1763583577967,500.0,0.0005452,30]